[Event "EYCC Girls U10 2021"]
[Site "Tornelo"]
[Date "2021.10.15"]
[Round "6.6"]
[White "Sokolova, Regina"]
[Black "Valiyeva, Asnad"]
[Result "1-0"]
[ECO "B17"]
[WhiteElo "1364"]
[BlackElo "1173"]
[Annotator "NA RC"]
[PlyCount "199"]
[EventDate "2021.10.15"]
[EventType "swiss"]
[EventCountry "NET"]
[SourceTitle "playchess.com"]
[Source "ChessBase"]
[SourceQuality "1"]
[TimeControl "5400+30"]

1. e4 {[%emt 0:00:30]} c6 {[%emt 0:00:40]} 2. d4 {[%emt 0:00:05]} d5 {[%emt 0:00:09]} 3. Nc3 {[%emt 0:00:04]} dxe4 {[%emt 0:00:05]} 4. Nxe4 {[%emt 0:00:03]} Nd7 {[%emt 0:00:03]} 5. Ng5 {[%emt 0:00:59]} Ngf6 {[%emt 0:00:18]} 6. Bd3 {[%emt 0:00:07]} Nb6 {[%emt 0:00:41]} 7. c3 {[%emt 0:00:56]} Bg4 {[%emt 0:00:35]} 8. Ne2 {[%emt 0:02:44]} e6 {[%emt 0:01:08]} 9. O-O {[%emt 0:01:32]} Be7 {[%emt 0:00:45]} 10. Qc2 {[%emt 0:02:20]} h6 {[%emt 0:05:39]} 11. Ne4 {[%emt 0:00:33]} Nxe4 {[%emt 0:02:20]} 12. Bxe4 {[%emt 0:00:05]} Bxe2 {[%emt 0:00:09]} 13. Qxe2 {[%emt 0:00:05]} O-O {[%emt 0:00:15]} 14. Bc2 {[%emt 0:00:12]} Qd7 {[%emt 0:01:16]} 15. Re1 {[%emt 0:01:10]} Nd5 {[%emt 0:00:25]} 16. Qg4 {[%emt 0:03:23]} f5 {[%emt 0:02:10]} 17. Qe2 {[%emt 0:10:08]} Rf6 {[%emt 0:09:12]} 18. Bb3 {[%emt 0:08:44]} Raf8 {[%emt 0:04:32]} 19. Bxd5 {[%emt 0:03:05]} Qxd5 {[%emt 0:01:28]} 20. Qe5 {[%emt 0:01:57]} Bd6 {[%emt 0:05:01]} 21. Qxd5 {[%emt 0:00:48]} exd5 {[%emt 0:02:06]} 22. Bd2 {[%emt 0:00:16]} Rg6 {[%emt 0:01:51]} 23. Re2 {[%emt 0:02:46]} f4 {[%emt 0:00:52]} 24. f3 {[%emt 0:00:11]} Rgf6 {[%emt 0:00:05]} 25. Rae1 {[%emt 0:00:14]} g5 {[%emt 0:00:06]} 26. h4 {[%emt 0:04:31]} gxh4 {[%emt 0:02:46]} 27. Kf2 {[%emt 0:00:21]} Kf7 {[%emt 0:03:59]} 28. Rh1 {[%emt 0:00:44]} Rg8 {[%emt 0:02:27]} 29. Rxh4 {[%emt 0:02:06]} b6 {[%emt 0:02:19]} 30. Re1 {[%emt 0:01:52]} Rfg6 {[%emt 0:02:54]} 31. Rg1 {[%emt 0:02:41]} Rf6 {[%emt 0:01:49]} 32. Rgh1 {[%emt 0:00:52]} Rgg6 {[%emt 0:01:18]} 33. Rg4 {[%emt 0:04:07]} Rf5 {[%emt 0:03:13]} 34. Re1 {[%emt 0:06:31]} Rfg5 {[%emt 0:09:27]} 35. Rxg5 {[%emt 0:00:38]} Rxg5 {[%emt 0:05:22]} 36. Rh1 {[%emt 0:00:29]} Rg6 {[%emt 0:00:10]} 37. Rh4 {[%emt 0:03:14]} Rf6 {[%emt 0:00:13]} 38. Rh5 {[%emt 0:02:54]} Kg6 {[%emt 0:00:54]} 39. Rh4 {[%emt 0:00:26]} h5 {[%emt 0:00:19]} 40. Rh1 {[%emt 0:00:35]} c5 {[%emt 0:02:01]} 41. Re1 {[%emt 0:00:28]} Kf7 {[%emt 0:00:11]} 42. b3 {[%emt 0:00:40]} Rf5 {[%emt 0:01:20]} 43. Rc1 {[%emt 0:00:50]} Be7 {[%emt 0:01:38]} 44. Kf1 {[%emt 0:02:40]} h4 {[%emt 0:05:04]} 45. Be1 {[%emt 0:01:19]} Rh5 {[%emt 0:00:29]} 46. Bd2 {[%emt 0:00:47]} Rf5 {[%emt 0:02:00]} 47. Kf2 {[%emt 0:00:24]} Ke6 {[%emt 0:01:24]} 48. Rh1 {[%emt 0:00:34]} Kd7 {[%emt 0:02:39]} 49. Ke2 {[%emt 0:00:25]} Bg5 {[%emt 0:00:13]} 50. Be1 {[%emt 0:00:34]} cxd4 {[%emt 0:00:48]} 51. cxd4 {[%emt 0:00:08]} Bf6 {[%emt 0:00:05]} 52. Kd3 {[%emt 0:00:23]} Rh5 {[%emt 0:00:10]} 53. Bd2 {[%emt 0:00:17]} Rf5 {[%emt 0:00:56]} 54. Rc1 {[%emt 0:03:40]} Be7 {[%emt 0:01:38]} 55. Rh1 {[%emt 0:02:43]} Ke6 {[%emt 0:01:21]} 56. Be1 {[%emt 0:00:28]} a5 {[%emt 0:01:30]} 57. Bxh4 {[%emt 0:04:08]} Bxh4 {[%emt 0:00:59]} 58. Rxh4 {[%emt 0:00:10]} Rf6 {[%emt 0:00:03]} 59. Rg4 {[%emt 0:00:21]} Kd6 {[%emt 0:00:07]} 60. a3 {[%emt 0:02:26]} Kc6 {[%emt 0:00:43]} 61. g3 {[%emt 0:02:44]} fxg3 {[%emt 0:00:08]} 62. Rxg3 {[%emt 0:00:05]} Kb7 {[%emt 0:00:17]} 63. Ke2 {[%emt 0:00:45]} Ka6 {[%emt 0:00:09]} 64. Rg5 {[%emt 0:00:19]} Rd6 {[%emt 0:00:11]} 65. Re5 {[%emt 0:00:13]} Kb5 {[%emt 0:00:05]} 66. Kd3 {[%emt 0:00:26]} Kc6 {[%emt 0:00:06]} 67. f4 {[%emt 0:00:07]} Rh6 {[%emt 0:00:06]} 68. f5 {[%emt 0:01:16]} Kd6 {[%emt 0:00:31]} 69. Ke2 {[%emt 0:02:03]} b5 {[%emt 0:02:30]} 70. Kf2 {[%emt 0:00:49]} Rh3 {[%emt 0:02:32]} 71. Re6+ {[%emt 0:01:45]} Kd7 {[%emt 0:00:07]} 72. Re3 {[%emt 0:01:25]} Rh4 {[%emt 0:01:59]} 73. Kg3 {[%emt 0:02:19]} Rxd4 {[%emt 0:04:08]} 74. f6 {[%emt 0:00:30]} Rd1 {[%emt 0:00:32]} 75. Kg4 {[%emt 0:01:02]} Rf1 {[%emt 0:00:48]} 76. Kg5 {[%emt 0:00:16]} Kd6 {[%emt 0:00:11]} 77. Kg6 {[%emt 0:00:44]} d4 {[%emt 0:00:05]} 78. Re8 {[%emt 0:00:08]} Kd5 {[%emt 0:00:10]} 79. f7 {[%emt 0:01:18]} a4 {[%emt 0:00:22]} 80. bxa4 {[%emt 0:00:42]} bxa4 {[%emt 0:00:15]} 81. f8=Q {[%emt 0:01:36]} Rxf8 {[%emt 0:00:09]} 82. Rxf8 {[%emt 0:00:04]} Kc4 {[%emt 0:00:04]} 83. Kf5 {[%emt 0:00:08]} d3 {[%emt 0:00:06]} 84. Ke4 {[%emt 0:00:30]} d2 {[%emt 0:00:50]} 85. Rd8 {[%emt 0:00:09]} Kb3 {[%emt 0:00:09]} 86. Rxd2 {[%emt 0:00:06]} Kxa3 {[%emt 0:00:04]} 87. Rd3+ {[%emt 0:00:47]} Kb2 {[%emt 0:00:05]} 88. Rd2+ {[%emt 0:03:11]} Kb3 {[%emt 0:00:06]} 89. Rd3+ {[%emt 0:00:22]} Kb2 {[%emt 0:00:14]} 90. Rd2+ {[%emt 0:00:03]} Kb3 {[%emt 0:00:04]} 91. Rd8 {[%emt 0:01:33]} a3 {[%emt 0:00:06]} 92. Kd3 {[%emt 0:00:43]} a2 {[%emt 0:00:44]} 93. Rb8+ {[%emt 0:00:13]} Ka3 {[%emt 0:00:16]} 94. Kc2 {[%emt 0:00:25]} a1=N+ {[%emt 0:00:09]} 95. Kc3 {[%emt 0:00:05]} Ka2 {[%emt 0:00:08]} 96. Rb7 {[%emt 0:00:12]} Nb3 {[%emt 0:00:27]} 97. Rxb3 {[%emt 0:00:12]} Ka1 {[%emt 0:00:05]} 98. Kc2 {[%emt 0:00:25]} Ka2 {[%emt 0:00:04]} 99. Rg3 {[%emt 0:00:13]} Ka1 {[%emt 0:00:03]} 100. Ra3# {[%emt 0:00:03]} 1-0

[Event "EYCC Girls U10 2021"]
[Site "Tornelo"]
[Date "2021.10.15"]
[Round "6.7"]
[White "Siskou, Evangelia"]
[Black "Kutateladze, Anastasia"]
[Result "0-1"]
[ECO "B80"]
[WhiteElo "1341"]
[BlackElo "1137"]
[Annotator "NA RC"]
[PlyCount "106"]
[EventDate "2021.10.15"]
[EventType "swiss"]
[EventCountry "NET"]
[SourceTitle "playchess.com"]
[Source "ChessBase"]
[SourceQuality "1"]
[TimeControl "5400+30"]

1. e4 {[%emt 0:00:30]} c5 {[%emt 0:00:36]} 2. Nf3 {[%emt 0:00:08]} e6 {[%emt 0:00:05]} 3. g3 {[%emt 0:00:16]} Nc6 {[%emt 0:01:00]} 4. Bg2 {[%emt 0:00:42]} Nf6 {[%emt 0:02:12]} 5. Nc3 {[%emt 0:00:29]} d6 {[%emt 0:00:33]} 6. O-O {[%emt 0:04:23]} Be7 {[%emt 0:01:24]} 7. d4 {[%emt 0:01:58]} cxd4 {[%emt 0:01:17]} 8. Nxd4 {[%emt 0:00:08]} Nxd4 {[%emt 0:06:43]} 9. Qxd4 {[%emt 0:00:11]} e5 {[%emt 0:00:08]} 10. Qa4+ {[%emt 0:00:58]} Bd7 {[%emt 0:00:28]} 11. Qb3 {[%emt 0:00:43]} Rb8 {[%emt 0:12:00]} 12. f4 {[%emt 0:10:45]} O-O {[%emt 0:03:26]} 13. Be3 {[%emt 0:08:21]} Be6 {[%emt 0:05:29]} 14. Qb5 {[%emt 0:01:22]} a6 {[%emt 0:01:14]} 15. Qb6 {[%emt 0:07:34]} Qc8 {[%emt 0:06:54]} 16. Bf2 {[%emt 0:08:32]} exf4 {[%emt 0:01:32]} 17. gxf4 {[%emt 0:00:14]} Bh3 {[%emt 0:00:43]} 18. Qe3 {[%emt 0:00:54]} Bxg2 {[%emt 0:00:58]} 19. Kxg2 {[%emt 0:00:17]} b5 {[%emt 0:02:57]} 20. Rac1 {[%emt 0:07:18]} b4 {[%emt 0:06:02]} 21. Ne2 {[%emt 0:02:13]} Qe6 {[%emt 0:01:34]} 22. Ng3 {[%emt 0:02:28]} Qxa2 {[%emt 0:06:22]} 23. b3 {[%emt 0:05:05]} Qa5 {[%emt 0:00:39]} 24. Nf5 {[%emt 0:00:34]} Rfe8 {[%emt 0:00:18]} 25. Qg3 {[%emt 0:03:32]} g6 {[%emt 0:04:40]} 26. Qg5 {[%emt 0:02:23]} Qc7 {[%emt 0:07:06]} 27. e5 {[%emt 0:12:30]} dxe5 {[%emt 0:01:17]} 28. fxe5 {[%emt 0:00:05]} Nd5 {[%emt 0:02:19]} 29. Nh6+ {[%emt 0:00:37]} Kg7 {[%emt 0:01:45]} 30. Nf5+ {[%emt 0:00:08]} Kh8 {[%emt 0:00:08]} 31. Nxe7 {[%emt 0:00:31]} Qxe7 {[%emt 0:01:35]} 32. Qxe7 {[%emt 0:00:13]} Nxe7 {[%emt 0:00:14]} 33. Bg3 {[%emt 0:00:42]} Nf5 {[%emt 0:01:21]} 34. Bf4 {[%emt 0:01:08]} Re6 {[%emt 0:00:22]} 35. Rcd1 {[%emt 0:00:27]} Nh4+ {[%emt 0:00:36]} 36. Kh3 {[%emt 0:00:14]} Nf5 {[%emt 0:00:36]} 37. Rd7 {[%emt 0:00:49]} Rc8 {[%emt 0:00:18]} 38. Rf2 {[%emt 0:01:08]} Rc3+ {[%emt 0:01:41]} 39. Kg4 {[%emt 0:00:57]} h5+ {[%emt 0:00:50]} 40. Kg5 {[%emt 0:00:07]} Kg7 {[%emt 0:00:35]} 41. Bg3 {[%emt 0:01:06]} Re3 {[%emt 0:00:33]} 42. Rf1 {[%emt 0:00:36]} Re4 {[%emt 0:05:53]} 43. h3 {[%emt 0:00:30]} Kg8 {[%emt 0:01:12]} 44. Rd8+ {[%emt 0:00:22]} Kg7 {[%emt 0:00:10]} 45. Rd7 {[%emt 0:00:05]} Kf8 {[%emt 0:00:12]} 46. Bf4 {[%emt 0:00:42]} Re2 {[%emt 0:00:24]} 47. Rd8+ {[%emt 0:01:14]} Ke7 {[%emt 0:00:16]} 48. Rfd1 {[%emt 0:00:07]} Rg2+ {[%emt 0:00:16]} 49. Bg3 {[%emt 0:00:04]} Rxg3+ {[%emt 0:01:16]} 50. Kf4 {[%emt 0:00:06]} Rc6 {[%emt 0:00:18]} 51. R1d7+ {[%emt 0:00:30]} Ke6 {[%emt 0:00:13]} 52. Rd2 {[%emt 0:02:23]} g5+ {[%emt 0:00:35]} 53. Ke4 {[%emt 0:00:06]} Re3# {[%emt 0:00:08]} 0-1

[Event "EYCC Girls U10 2021"]
[Site "Tornelo"]
[Date "2021.10.15"]
[Round "6.8"]
[White "Kuznetsova, Ekaterina A"]
[Black "Gratskova, Anastasia"]
[Result "1/2-1/2"]
[ECO "E22"]
[WhiteElo "1085"]
[BlackElo "1313"]
[Annotator "NA RC"]
[PlyCount "97"]
[EventDate "2021.10.15"]
[EventType "swiss"]
[EventCountry "NET"]
[SourceTitle "playchess.com"]
[Source "ChessBase"]
[SourceQuality "1"]
[TimeControl "5400+30"]

1. d4 {[%emt 0:00:30]} Nf6 {[%emt 0:00:42]} 2. c4 {[%emt 0:00:07]} e6 {[%emt 0:00:04]} 3. Nc3 {[%emt 0:00:15]} Bb4 {[%emt 0:00:05]} 4. Qb3 {[%emt 0:01:42]} c5 {[%emt 0:00:08]} 5. dxc5 {[%emt 0:00:40]} Bxc5 {[%emt 0:00:04]} 6. Bg5 {[%emt 0:00:32]} Bxf2+ {[%emt 0:01:09]} 7. Kxf2 {[%emt 0:00:31]} Ng4+ {[%emt 0:00:04]} 8. Ke1 {[%emt 0:00:10]} Qxg5 {[%emt 0:00:05]} 9. Ne4 {[%emt 0:00:51]} Qa5+ {[%emt 0:05:56]} 10. Nd2 {[%emt 0:02:51]} O-O {[%emt 0:01:27]} 11. Ngf3 {[%emt 0:00:16]} Nc6 {[%emt 0:00:48]} 12. h3 {[%emt 0:00:58]} Nf6 {[%emt 0:00:44]} 13. e3 {[%emt 0:00:41]} d5 {[%emt 0:01:17]} 14. cxd5 {[%emt 0:00:23]} exd5 {[%emt 0:00:35]} 15. Be2 {[%emt 0:03:15]} Ne4 {[%emt 0:05:05]} 16. Rd1 {[%emt 0:00:24]} Ng3 {[%emt 0:00:26]} 17. Rg1 {[%emt 0:00:29]} Re8 {[%emt 0:01:00]} 18. Kf2 {[%emt 0:10:40]} Nxe2 {[%emt 0:01:08]} 19. Kxe2 {[%emt 0:00:26]} Rb8 {[%emt 0:04:53]} 20. Rge1 {[%emt 0:00:27]} Be6 {[%emt 0:00:40]} 21. Qc2 {[%emt 0:03:12]} Nb4 {[%emt 0:02:26]} 22. Qc3 {[%emt 0:00:54]} Qb5+ {[%emt 0:00:26]} 23. Kf2 {[%emt 0:00:38]} Nd3+ {[%emt 0:00:20]} 24. Kg1 {[%emt 0:00:21]} Nxe1 {[%emt 0:00:07]} 25. Rxe1 {[%emt 0:00:13]} Rbc8 {[%emt 0:00:54]} 26. Qd4 {[%emt 0:00:52]} Qc5 {[%emt 0:00:42]} 27. Qf4 {[%emt 0:01:30]} f6 {[%emt 0:05:40]} 28. Nd4 {[%emt 0:04:27]} Bd7 {[%emt 0:07:25]} 29. N2b3 {[%emt 0:01:21]} Qb4 {[%emt 0:00:46]} 30. Qf2 {[%emt 0:00:52]} a5 {[%emt 0:00:51]} 31. a3 {[%emt 0:00:41]} Qb6 {[%emt 0:00:09]} 32. Nc1 {[%emt 0:02:06]} Re7 {[%emt 0:08:53]} 33. Nd3 {[%emt 0:08:29]} Rce8 {[%emt 0:04:50]} 34. Qf3 {[%emt 0:04:11]} Qd6 {[%emt 0:00:49]} 35. Nf4 {[%emt 0:00:35]} Re4 {[%emt 0:00:25]} 36. Nd3 {[%emt 0:04:11]} g6 {[%emt 0:05:22]} 37. Nb3 {[%emt 0:07:01]} b6 {[%emt 0:00:59]} 38. Nd4 {[%emt 0:01:11]} f5 {[%emt 0:00:51]} 39. Kf2 {[%emt 0:01:51]} b5 {[%emt 0:05:33]} 40. Nb3 {[%emt 0:04:45]} Rc8 {[%emt 0:03:00]} 41. Nd4 {[%emt 0:01:31]} b4 {[%emt 0:00:44]} 42. axb4 {[%emt 0:00:38]} axb4 {[%emt 0:00:07]} 43. Re2 {[%emt 0:01:21]} Kg7 {[%emt 0:03:45]} 44. Nf4 {[%emt 0:03:03]} Be8 {[%emt 0:04:59]} 45. Qg3 {[%emt 0:00:52]} Kf7 {[%emt 0:02:46]} 46. Qh4 {[%emt 0:01:06]} h5 {[%emt 0:02:58]} 47. Qg5 {[%emt 0:01:27]} Rc5 {[%emt 0:01:30]} 48. Qh6 {[%emt 0:02:35]} Ke7 {[%emt 0:01:34]} 49. Re1 {[%emt 0:02:21]} 1/2-1/2

[Event "EYCC Girls U10 2021"]
[Site "Tornelo"]
[Date "2021.10.15"]
[Round "6.9"]
[White "Nahapetyan, Ani"]
[Black "Figa, Karolina"]
[Result "1/2-1/2"]
[ECO "B13"]
[WhiteElo "1075"]
[BlackElo "1411"]
[Annotator "NA RC"]
[PlyCount "103"]
[EventDate "2021.10.15"]
[EventType "swiss"]
[EventCountry "NET"]
[SourceTitle "playchess.com"]
[Source "ChessBase"]
[SourceQuality "1"]
[TimeControl "5400+30"]

1. e4 {[%emt 0:00:50]} c6 {[%emt 0:00:38]} 2. d4 {[%emt 0:00:06]} d5 {[%emt 0:00:10]} 3. exd5 {[%emt 0:00:05]} cxd5 {[%emt 0:00:12]} 4. Bd3 {[%emt 0:00:24]} Nc6 {[%emt 0:00:20]} 5. c3 {[%emt 0:00:29]} Nf6 {[%emt 0:00:14]} 6. h3 {[%emt 0:00:29]} g6 {[%emt 0:03:48]} 7. Qc2 {[%emt 0:01:27]} Bg7 {[%emt 0:00:47]} 8. Nf3 {[%emt 0:01:16]} O-O {[%emt 0:00:33]} 9. O-O {[%emt 0:02:01]} a6 {[%emt 0:01:15]} 10. a4 {[%emt 0:02:00]} b6 {[%emt 0:01:40]} 11. Nbd2 {[%emt 0:02:18]} Bb7 {[%emt 0:01:56]} 12. Re1 {[%emt 0:05:41]} Rc8 {[%emt 0:01:59]} 13. Nf1 {[%emt 0:01:43]} Re8 {[%emt 0:02:06]} 14. Be3 {[%emt 0:02:26]} Nb4 {[%emt 0:02:56]} 15. Qe2 {[%emt 0:01:48]} Nxd3 {[%emt 0:00:31]} 16. Qxd3 {[%emt 0:00:09]} Ne4 {[%emt 0:02:57]} 17. N1d2 {[%emt 0:02:08]} Nd6 {[%emt 0:00:58]} 18. b3 {[%emt 0:02:41]} b5 {[%emt 0:00:25]} 19. axb5 {[%emt 0:00:58]} axb5 {[%emt 0:02:54]} 20. Rec1 {[%emt 0:03:13]} Qb6 {[%emt 0:01:22]} 21. Rab1 {[%emt 0:01:14]} Qc6 {[%emt 0:01:30]} 22. Bf4 {[%emt 0:02:39]} Ba6 {[%emt 0:01:28]} 23. b4 {[%emt 0:02:57]} Nc4 {[%emt 0:02:28]} 24. Nxc4 {[%emt 0:01:29]} Qxc4 {[%emt 0:00:23]} 25. Qxc4 {[%emt 0:01:17]} Rxc4 {[%emt 0:00:12]} 26. Ra1 {[%emt 0:01:17]} Rc6 {[%emt 0:00:20]} 27. Kf1 {[%emt 0:03:12]} Bc8 {[%emt 0:00:34]} 28. Ra5 {[%emt 0:00:33]} Bf5 {[%emt 0:01:01]} 29. Ke2 {[%emt 0:01:43]} Rb6 {[%emt 0:01:03]} 30. Rca1 {[%emt 0:01:18]} Rc8 {[%emt 0:02:23]} 31. Kd2 {[%emt 0:01:36]} Be4 {[%emt 0:01:03]} 32. Ne1 {[%emt 0:01:04]} Bf5 {[%emt 0:01:07]} 33. Ra6 {[%emt 0:01:25]} Rb7 {[%emt 0:02:03]} 34. Ra7 {[%emt 0:00:39]} Rd7 {[%emt 0:00:55]} 35. Rxd7 {[%emt 0:00:38]} Bxd7 {[%emt 0:00:06]} 36. Ra7 {[%emt 0:00:34]} Bc6 {[%emt 0:01:20]} 37. Rxe7 {[%emt 0:00:49]} Bf6 {[%emt 0:01:27]} 38. Rc7 {[%emt 0:01:33]} Rxc7 {[%emt 0:00:23]} 39. Bxc7 {[%emt 0:00:06]} Bg5+ {[%emt 0:00:41]} 40. Kd3 {[%emt 0:01:00]} Bd7 {[%emt 0:01:30]} 41. Nf3 {[%emt 0:04:38]} Bf5+ {[%emt 0:01:07]} 42. Ke2 {[%emt 0:00:18]} Bf6 {[%emt 0:00:13]} 43. Ke3 {[%emt 0:01:02]} Be4 {[%emt 0:01:18]} 44. Bd6 {[%emt 0:04:19]} Bxf3 {[%emt 0:00:27]} 45. Kxf3 {[%emt 0:00:24]} Bg5 {[%emt 0:00:20]} 46. Ke2 {[%emt 0:00:35]} f5 {[%emt 0:00:46]} 47. g4 {[%emt 0:02:04]} fxg4 {[%emt 0:00:20]} 48. hxg4 {[%emt 0:00:05]} Kf7 {[%emt 0:00:14]} 49. Be5 {[%emt 0:01:27]} h5 {[%emt 0:00:19]} 50. gxh5 {[%emt 0:06:11]} gxh5 {[%emt 0:00:16]} 51. f4 {[%emt 0:04:08]} Bh4 {[%emt 0:00:42]} 52. f5 {[%emt 0:01:39]} 1/2-1/2

[Event "EYCC Girls U10 2021"]
[Site "Tornelo"]
[Date "2021.10.15"]
[Round "6.10"]
[White "Zhou, Leyi Charlotte"]
[Black "Bubnova, Uliana"]
[Result "1-0"]
[ECO "B39"]
[WhiteElo "1199"]
[BlackElo "1333"]
[Annotator "NA RC"]
[PlyCount "111"]
[EventDate "2021.10.15"]
[EventType "swiss"]
[EventCountry "NET"]
[SourceTitle "playchess.com"]
[Source "ChessBase"]
[SourceQuality "1"]
[TimeControl "5400+30"]

1. e4 {[%emt 0:00:30]} c5 {[%emt 0:00:39]} 2. Nf3 {[%emt 0:00:22]} Nc6 {[%emt 0:00:10]} 3. c4 {[%emt 0:00:18]} g6 {[%emt 0:00:06]} 4. d4 {[%emt 0:00:50]} cxd4 {[%emt 0:00:18]} 5. Nxd4 {[%emt 0:00:28]} Bg7 {[%emt 0:00:06]} 6. Be3 {[%emt 0:00:32]} Nf6 {[%emt 0:00:35]} 7. Nc3 {[%emt 0:00:49]} Ng4 {[%emt 0:01:36]} 8. Nxc6 {[%emt 0:03:15]} Nxe3 {[%emt 0:00:24]} 9. Nxd8 {[%emt 0:01:16]} Nxd1 {[%emt 0:00:06]} 10. Rxd1 {[%emt 0:01:06]} Kxd8 {[%emt 0:00:06]} 11. Be2 {[%emt 0:00:30]} b6 {[%emt 0:02:50]} 12. O-O {[%emt 0:01:20]} h5 {[%emt 0:02:21]} 13. Rd3 {[%emt 0:01:25]} d6 {[%emt 0:02:22]} 14. Rfd1 {[%emt 0:00:53]} Bb7 {[%emt 0:01:25]} 15. f4 {[%emt 0:03:35]} Bxc3 {[%emt 0:00:56]} 16. Rxc3 {[%emt 0:01:53]} Bxe4 {[%emt 0:01:26]} 17. c5 {[%emt 0:01:16]} bxc5 {[%emt 0:00:31]} 18. Rxc5 {[%emt 0:00:15]} Rc8 {[%emt 0:00:43]} 19. Ra5 {[%emt 0:03:08]} Rc2 {[%emt 0:07:12]} 20. Bd3 {[%emt 0:06:25]} Rxg2+ {[%emt 0:05:47]} 21. Kf1 {[%emt 0:00:32]} Bb7 {[%emt 0:01:47]} 22. Rb5 {[%emt 0:01:06]} Rxh2 {[%emt 0:03:47]} 23. Rxb7 {[%emt 0:00:36]} Rh1+ {[%emt 0:00:10]} 24. Ke2 {[%emt 0:00:09]} Rxd1 {[%emt 0:00:06]} 25. Kxd1 {[%emt 0:00:09]} Rh7 {[%emt 0:00:13]} 26. Rxa7 {[%emt 0:00:09]} h4 {[%emt 0:00:05]} 27. Ra8+ {[%emt 0:00:36]} Kd7 {[%emt 0:00:10]} 28. Ra7+ {[%emt 0:02:07]} Ke6 {[%emt 0:00:07]} 29. Bc4+ {[%emt 0:01:42]} Kf5 {[%emt 0:00:07]} 30. Rxe7 {[%emt 0:00:21]} h3 {[%emt 0:00:59]} 31. Bd5 {[%emt 0:01:22]} Kxf4 {[%emt 0:00:28]} 32. Ke2 {[%emt 0:01:09]} g5 {[%emt 0:00:46]} 33. Re4+ {[%emt 0:01:44]} Kg3 {[%emt 0:00:35]} 34. Re3+ {[%emt 0:01:06]} Kh4 {[%emt 0:00:14]} 35. Kf2 {[%emt 0:01:29]} f5 {[%emt 0:01:31]} 36. Rf3 {[%emt 0:01:25]} Rc7 {[%emt 0:02:48]} 37. Rxf5 {[%emt 0:07:04]} Rc2+ {[%emt 0:00:10]} 38. Ke3 {[%emt 0:02:13]} g4 {[%emt 0:00:52]} 39. b4 {[%emt 0:05:01]} Rb2 {[%emt 0:00:46]} 40. Rf4 {[%emt 0:02:44]} Rb1 {[%emt 0:05:06]} 41. Bf3 {[%emt 0:01:00]} Rg1 {[%emt 0:00:07]} 42. Kf2 {[%emt 0:03:11]} h2 {[%emt 0:01:14]} 43. b5 {[%emt 0:00:27]} Kh3 {[%emt 0:01:43]} 44. Rxg4 {[%emt 0:01:48]} h1=Q {[%emt 0:01:19]} 45. Bxh1 {[%emt 0:02:38]} Rxg4 {[%emt 0:01:37]} 46. b6 {[%emt 0:00:27]} Ra4 {[%emt 0:00:45]} 47. Bd5 {[%emt 0:00:32]} Kg4 {[%emt 0:00:40]} 48. b7 {[%emt 0:00:22]} Rb4 {[%emt 0:00:06]} 49. a4 {[%emt 0:00:16]} Kf4 {[%emt 0:00:11]} 50. a5 {[%emt 0:00:14]} Ke5 {[%emt 0:00:30]} 51. Bc6 {[%emt 0:00:39]} d5 {[%emt 0:00:17]} 52. a6 {[%emt 0:00:18]} Rb2+ {[%emt 0:00:07]} 53. Ke3 {[%emt 0:00:19]} d4+ {[%emt 0:00:35]} 54. Kd3 {[%emt 0:00:08]} Rb3+ {[%emt 0:00:08]} 55. Kc2 {[%emt 0:00:13]} Rc3+ {[%emt 0:00:08]} 56. Kd2 {[%emt 0:00:10]} 1-0

[Event "EYCC Girls U10 2021"]
[Site "Tornelo"]
[Date "2021.10.15"]
[Round "6.11"]
[White "Kuzmina, Sofya Vl"]
[Black "Mateeva, Yana"]
[Result "1-0"]
[ECO "E04"]
[WhiteElo "1102"]
[BlackElo "1299"]
[Annotator "NA RC"]
[PlyCount "43"]
[EventDate "2021.10.15"]
[EventType "swiss"]
[EventCountry "NET"]
[SourceTitle "playchess.com"]
[Source "ChessBase"]
[SourceQuality "1"]
[TimeControl "5400+30"]

1. d4 {[%emt 0:00:30]} d5 {[%emt 0:00:44]} 2. c4 {[%emt 0:00:18]} e6 {[%emt 0:00:15]} 3. Nf3 {[%emt 0:00:07]} Nf6 {[%emt 0:00:34]} 4. g3 {[%emt 0:00:23]} dxc4 {[%emt 0:00:22]} 5. Bg2 {[%emt 0:00:13]} Bd7 {[%emt 0:00:24]} 6. Ne5 {[%emt 0:00:16]} Bc6 {[%emt 0:00:37]} 7. Nxc6 {[%emt 0:00:13]} Nxc6 {[%emt 0:00:06]} 8. Qa4 {[%emt 0:00:17]} Nd5 {[%emt 0:03:11]} 9. Qxc4 {[%emt 0:01:01]} Be7 {[%emt 0:01:24]} 10. Nc3 {[%emt 0:01:43]} Ndb4 {[%emt 0:05:37]} 11. O-O {[%emt 0:02:25]} Nc2 {[%emt 0:03:47]} 12. Bxc6+ {[%emt 0:01:18]} bxc6 {[%emt 0:01:41]} 13. Qxc6+ {[%emt 0:00:10]} Kf8 {[%emt 0:00:41]} 14. Rb1 {[%emt 0:00:12]} Nxd4 {[%emt 0:01:07]} 15. Qe4 {[%emt 0:00:59]} Nf5 {[%emt 0:01:08]} 16. Bf4 {[%emt 0:01:30]} Nd6 {[%emt 0:05:43]} 17. Qc6 {[%emt 0:01:47]} Rb8 {[%emt 0:03:09]} 18. Rfd1 {[%emt 0:00:24]} Rb6 {[%emt 0:01:18]} 19. Qa4 {[%emt 0:01:52]} Rb7 {[%emt 0:02:29]} 20. Ne4 {[%emt 0:02:57]} f5 {[%emt 0:01:45]} 21. Nc5 {[%emt 0:02:45]} Rb8 {[%emt 0:02:18]} 22. Nxe6+ {[%emt 0:00:16]} 1-0